[Event "Titled Tuesday Blitz April 05 Early 2022"]
[White "Goldin, Roman"]
[Black "Mkrtchyan, Mariam"]
[WhiteFideId "2803860"]
[BlackFideId "13310828"]
[WhiteElo "2312"]
[BlackElo "1984"]
[Result "0-1"]
[Round "05"]
[TimeControl "180+1"]
[Date "2022.04.05"]
[WhiteClock "0:00:02"]
[BlackClock "0:00:31"]

1. e4 {[%clk 0:02:58]}  c6 {[%clk 0:03:00]} 2. d4 {[%clk 0:02:57]}  d5 {[%clk 0:03:00]} 3. f3 {[%clk 0:02:49]}  e6 {[%clk 0:03:00]} 4. Nc3 {[%clk 0:02:47]}  Bb4 {[%clk 0:02:59]} 5. a3 {[%clk 0:02:25]}  Bxc3+ {[%clk 0:02:26]} 6. bxc3 {[%clk 0:02:24]}  dxe4 {[%clk 0:02:27]} 7. Bc4 {[%clk 0:02:04]}  c5 {[%clk 0:02:19]} 8. d5 {[%clk 0:01:59]}  Nf6 {[%clk 0:02:06]} 9. dxe6 {[%clk 0:01:55]}  Qxd1+ {[%clk 0:02:02]} 10. Kxd1 {[%clk 0:01:55]}  Bxe6 {[%clk 0:02:03]} 11. Bxe6 {[%clk 0:01:55]}  fxe6 {[%clk 0:01:58]} 12. Bg5 {[%clk 0:01:54]}  Nc6 {[%clk 0:01:52]} 13. Bxf6 {[%clk 0:01:47]}  gxf6 {[%clk 0:01:51]} 14. fxe4 {[%clk 0:01:48]}  O-O-O+ {[%clk 0:01:45]} 15. Ke2 {[%clk 0:01:47]}  Rhg8 {[%clk 0:01:46]} 16. g3 {[%clk 0:01:47]}  Rg4 {[%clk 0:01:36]} 17. Ke3 {[%clk 0:01:40]}  f5 {[%clk 0:01:35]} 18. exf5 {[%clk 0:01:36]}  exf5 {[%clk 0:01:36]} 19. Nf3 {[%clk 0:01:34]}  Rc4 {[%clk 0:01:33]} 20. Rhd1 {[%clk 0:01:21]}  Rxc3+ {[%clk 0:01:32]} 21. Kf4 {[%clk 0:01:21]}  Rg8 {[%clk 0:01:23]} 22. Rd2 {[%clk 0:01:08]}  h5 {[%clk 0:01:18]} 23. Nh4 {[%clk 0:00:59]}  Nd4 {[%clk 0:01:15]} 24. Re1 {[%clk 0:00:44]}  Rxa3 {[%clk 0:01:09]} 25. Re7 {[%clk 0:00:28]}  Rg4+ {[%clk 0:01:03]} 26. Ke5 {[%clk 0:00:28]}  Nc6+ {[%clk 0:00:57]} 27. Kd6 {[%clk 0:00:17]}  Nxe7 {[%clk 0:00:57]} 28. Kxe7 {[%clk 0:00:17]}  f4 {[%clk 0:00:57]} 29. Nf5 {[%clk 0:00:16]}  f3 {[%clk 0:00:53]} 30. Nd6+ {[%clk 0:00:04]}  Kb8 {[%clk 0:00:48]} 31. Nb5 {[%clk 0:00:01]}  Re3+ {[%clk 0:00:43]} 32. Kf6 {[%clk 0:00:02]}  Rg8 {[%clk 0:00:31]} 0-1


[Site "https://www.chess.com"]

[Event "Titled Tuesday Blitz April 05 Early 2022"]
[White "Goryachkina, Aleksandra"]
[Black "Pinheiro, Iung Alicio de O."]
[WhiteFideId "4147103"]
[BlackFideId "2104350"]
[WhiteElo "2426"]
[BlackElo "2512"]
[Result "0-1"]
[Round "05"]
[TimeControl "180+1"]
[Date "2022.04.05"]
[WhiteClock "0:00:02"]
[BlackClock "0:00:08"]

1. e4 {[%clk 0:02:59]}  c5 {[%clk 0:02:58]} 2. Nf3 {[%clk 0:02:59]}  Nc6 {[%clk 0:02:57]} 3. Bb5 {[%clk 0:02:58]}  e6 {[%clk 0:02:56]} 4. O-O {[%clk 0:02:55]}  Nge7 {[%clk 0:02:55]} 5. c3 {[%clk 0:02:48]}  a6 {[%clk 0:02:49]} 6. Ba4 {[%clk 0:02:48]}  b5 {[%clk 0:02:30]} 7. Bc2 {[%clk 0:02:48]}  Bb7 {[%clk 0:02:26]} 8. a4 {[%clk 0:02:45]}  d5 {[%clk 0:01:50]} 9. d4 {[%clk 0:02:20]}  cxd4 {[%clk 0:01:45]} 10. Nxd4 {[%clk 0:02:20]}  b4 {[%clk 0:01:15]} 11. Nxc6 {[%clk 0:02:12]}  Bxc6 {[%clk 0:01:07]} 12. cxb4 {[%clk 0:02:04]}  dxe4 {[%clk 0:01:05]} 13. Qe2 {[%clk 0:02:04]}  f5 {[%clk 0:00:45]} 14. Bg5 {[%clk 0:01:17]}  Qb6 {[%clk 0:00:40]} 15. Nc3 {[%clk 0:01:11]}  Nd5 {[%clk 0:00:37]} 16. b5 {[%clk 0:01:01]}  axb5 {[%clk 0:00:28]} 17. axb5 {[%clk 0:00:59]}  Bb7 {[%clk 0:00:29]} 18. Bb3 {[%clk 0:00:40]}  Rxa1 {[%clk 0:00:25]} 19. Rxa1 {[%clk 0:00:40]}  Bc5 {[%clk 0:00:21]} 20. Na4 {[%clk 0:00:20]}  Qd6 {[%clk 0:00:20]} 21. Nxc5 {[%clk 0:00:19]}  Qxc5 {[%clk 0:00:21]} 22. Be3 {[%clk 0:00:16]}  Nxe3 {[%clk 0:00:17]} 23. Qxe3 {[%clk 0:00:16]}  Qxe3 {[%clk 0:00:17]} 24. fxe3 {[%clk 0:00:16]}  Ke7 {[%clk 0:00:14]} 25. Ra7 {[%clk 0:00:10]}  Rb8 {[%clk 0:00:14]} 26. Bc4 {[%clk 0:00:09]}  Kd6 {[%clk 0:00:14]} 27. b3 {[%clk 0:00:09]}  h6 {[%clk 0:00:12]} 28. Kf2 {[%clk 0:00:09]}  g5 {[%clk 0:00:12]} 29. Ke2 {[%clk 0:00:09]}  f4 {[%clk 0:00:12]} 30. Kd2 {[%clk 0:00:09]}  e5 {[%clk 0:00:12]} 31. Ra1 {[%clk 0:00:04]}  Kc5 {[%clk 0:00:11]} 32. Kc3 {[%clk 0:00:03]}  Rd8 {[%clk 0:00:11]} 33. b4+ {[%clk 0:00:02]}  Kb6 {[%clk 0:00:11]} 34. Re1 {[%clk 0:00:02]}  f3 {[%clk 0:00:11]} 35. g3 {[%clk 0:00:02]}  g4 {[%clk 0:00:09]} 36. Rc1 {[%clk 0:00:02]}  h5 {[%clk 0:00:08]} 37. Kb3 {[%clk 0:00:02]}  Rd2 {[%clk 0:00:08]} 0-1


[Site "https://www.chess.com"]

[Event "Titled Tuesday Blitz April 05 Early 2022"]
[White "Hansen, Eric"]
[Black "Chen, Qi b"]
[WhiteFideId "2606771"]
[BlackFideId "8614733"]
[WhiteElo "2568"]
[BlackElo "2432"]
[Result "0-1"]
[Round "05"]
[TimeControl "180+1"]
[Date "2022.04.05"]
[WhiteClock "0:00:03"]
[BlackClock "0:00:03"]

1. e4 {[%clk 0:02:55]}  c5 {[%clk 0:02:59]} 2. Nf3 {[%clk 0:02:55]}  Nc6 {[%clk 0:03:00]} 3. Bb5 {[%clk 0:02:55]}  g6 {[%clk 0:02:58]} 4. O-O {[%clk 0:02:55]}  Bg7 {[%clk 0:02:58]} 5. Bxc6 {[%clk 0:02:55]}  dxc6 {[%clk 0:02:53]} 6. h3 {[%clk 0:02:54]}  Nf6 {[%clk 0:02:47]} 7. d3 {[%clk 0:02:54]}  Nd7 {[%clk 0:02:43]} 8. Nc3 {[%clk 0:02:53]}  e5 {[%clk 0:02:42]} 9. a3 {[%clk 0:02:52]}  a5 {[%clk 0:02:13]} 10. Be3 {[%clk 0:02:40]}  a4 {[%clk 0:02:08]} 11. Qd2 {[%clk 0:02:35]}  O-O {[%clk 0:02:07]} 12. Bh6 {[%clk 0:02:34]}  Re8 {[%clk 0:01:56]} 13. Bxg7 {[%clk 0:02:34]}  Kxg7 {[%clk 0:01:57]} 14. Ne2 {[%clk 0:02:34]}  f6 {[%clk 0:01:51]} 15. Qc3 {[%clk 0:02:32]}  Qe7 {[%clk 0:01:47]} 16. Nd2 {[%clk 0:02:32]}  b5 {[%clk 0:01:43]} 17. f4 {[%clk 0:02:23]}  exf4 {[%clk 0:01:43]} 18. Rxf4 {[%clk 0:02:18]}  Qe5 {[%clk 0:01:27]} 19. Raf1 {[%clk 0:02:09]}  Qxc3 {[%clk 0:01:23]} 20. Nxc3 {[%clk 0:02:04]}  Re6 {[%clk 0:01:22]} 21. R1f2 {[%clk 0:01:59]}  Ra7 {[%clk 0:01:13]} 22. g4 {[%clk 0:01:57]}  Ne5 {[%clk 0:01:11]} 23. Nd1 {[%clk 0:01:48]}  g5 {[%clk 0:00:39]} 24. Rf5 {[%clk 0:01:48]}  Rd6 {[%clk 0:00:40]} 25. Ne3 {[%clk 0:01:46]}  Kg6 {[%clk 0:00:40]} 26. Kg2 {[%clk 0:01:45]}  Bxf5 {[%clk 0:00:39]} 27. exf5+ {[%clk 0:01:45]}  Kg7 {[%clk 0:00:34]} 28. Ne4 {[%clk 0:01:46]}  Rd8 {[%clk 0:00:26]} 29. Nxc5 {[%clk 0:01:46]}  Kf7 {[%clk 0:00:26]} 30. Ne6 {[%clk 0:01:45]}  Re8 {[%clk 0:00:25]} 31. h4 {[%clk 0:01:38]}  h6 {[%clk 0:00:21]} 32. Kg3 {[%clk 0:01:33]}  Rb7 {[%clk 0:00:17]} 33. Rh2 {[%clk 0:01:30]}  Rxe6 {[%clk 0:00:17]} 34. fxe6+ {[%clk 0:01:30]}  Kxe6 {[%clk 0:00:18]} 35. h5 {[%clk 0:00:49]}  b4 {[%clk 0:00:14]} 36. Nf5 {[%clk 0:00:42]}  bxa3 {[%clk 0:00:14]} 37. bxa3 {[%clk 0:00:42]}  Rb1 {[%clk 0:00:10]} 38. Nxh6 {[%clk 0:00:35]}  Ra1 {[%clk 0:00:09]} 39. Re2 {[%clk 0:00:28]}  c5 {[%clk 0:00:05]} 40. Nf5 {[%clk 0:00:22]}  Rxa3 {[%clk 0:00:05]} 41. h6 {[%clk 0:00:19]}  Ra1 {[%clk 0:00:05]} 42. Rh2 {[%clk 0:00:13]}  Rg1+ {[%clk 0:00:04]} 43. Kf2 {[%clk 0:00:14]}  Rxg4 {[%clk 0:00:03]} 44. h7 {[%clk 0:00:13]}  Nf7 {[%clk 0:00:04]} 45. Ng7+ {[%clk 0:00:12]}  Kd7 {[%clk 0:00:03]} 46. h8=Q {[%clk 0:00:12]}  Nxh8 {[%clk 0:00:04]} 47. Rxh8 {[%clk 0:00:13]}  c4 {[%clk 0:00:02]} 48. Ra8 {[%clk 0:00:11]}  cxd3 {[%clk 0:00:02]} 49. cxd3 {[%clk 0:00:12]}  Ke7 {[%clk 0:00:03]} 50. Nf5+ {[%clk 0:00:10]}  Ke6 {[%clk 0:00:03]} 51. Ne3 {[%clk 0:00:10]}  Rf4+ {[%clk 0:00:03]} 52. Ke2 {[%clk 0:00:11]}  Kf7 {[%clk 0:00:03]} 53. Nd5 {[%clk 0:00:10]}  Rd4 {[%clk 0:00:03]} 54. Ra7+ {[%clk 0:00:09]}  Kg6 {[%clk 0:00:03]} 55. Ne7+ {[%clk 0:00:09]}  Kh5 {[%clk 0:00:03]} 56. Nf5 {[%clk 0:00:09]}  Rf4 {[%clk 0:00:03]} 57. Nd6 {[%clk 0:00:07]}  g4 {[%clk 0:00:03]} 58. Ne4 {[%clk 0:00:08]}  f5 {[%clk 0:00:04]} 59. Ng3+ {[%clk 0:00:03]}  Kh4 {[%clk 0:00:03]} 60. Nf1 {[%clk 0:00:04]}  g3 {[%clk 0:00:03]} 61. Rh7+ {[%clk 0:00:03]}  Kg5 {[%clk 0:00:04]} 62. Rg7+ {[%clk 0:00:03]}  Kf6 {[%clk 0:00:03]} 0-1


[Site "https://www.chess.com"]

[Event "Titled Tuesday Blitz April 05 Early 2022"]
[White "Horcajuelo Rocamora, Martin"]
[Black "Iljin, Timofey"]
[WhiteFideId "24573027"]
[BlackFideId "14110180"]
[WhiteElo "1822"]
[BlackElo "2396"]
[Result "0-1"]
[Round "05"]
[TimeControl "180+1"]
[Date "2022.04.05"]
[WhiteClock "0:01:09"]
[BlackClock "0:02:00"]

1. e4 {[%clk 0:02:47]}  e5 {[%clk 0:02:59]} 2. Nf3 {[%clk 0:02:46]}  Nc6 {[%clk 0:02:58]} 3. Bb5 {[%clk 0:02:39]}  a6 {[%clk 0:02:58]} 4. Ba4 {[%clk 0:02:37]}  Nf6 {[%clk 0:02:57]} 5. d3 {[%clk 0:02:33]}  b5 {[%clk 0:02:58]} 6. Bb3 {[%clk 0:02:33]}  Bc5 {[%clk 0:02:58]} 7. O-O {[%clk 0:02:31]}  d6 {[%clk 0:02:58]} 8. c3 {[%clk 0:02:31]}  O-O {[%clk 0:02:57]} 9. Nbd2 {[%clk 0:02:30]}  Bb6 {[%clk 0:02:55]} 10. Re1 {[%clk 0:02:29]}  Ne7 {[%clk 0:02:56]} 11. Nf1 {[%clk 0:02:29]}  Ng6 {[%clk 0:02:55]} 12. Ng3 {[%clk 0:02:29]}  c6 {[%clk 0:02:53]} 13. Be3 {[%clk 0:02:21]}  h6 {[%clk 0:02:52]} 14. a4 {[%clk 0:02:07]}  Be6 {[%clk 0:02:49]} 15. Bc2 {[%clk 0:01:51]}  Re8 {[%clk 0:02:38]} 16. h3 {[%clk 0:01:49]}  d5 {[%clk 0:02:34]} 17. exd5 {[%clk 0:01:48]}  cxd5 {[%clk 0:02:35]} 18. Bxb6 {[%clk 0:01:47]}  Qxb6 {[%clk 0:02:29]} 19. axb5 {[%clk 0:01:43]}  axb5 {[%clk 0:02:26]} 20. Rxa8 {[%clk 0:01:40]}  Rxa8 {[%clk 0:02:27]} 21. Nxe5 {[%clk 0:01:39]}  Nxe5 {[%clk 0:02:25]} 22. Rxe5 {[%clk 0:01:40]}  b4 {[%clk 0:02:25]} 23. d4 {[%clk 0:01:32]}  bxc3 {[%clk 0:02:23]} 24. bxc3 {[%clk 0:01:33]}  Rc8 {[%clk 0:02:22]} 25. Qd3 {[%clk 0:01:26]}  Qb2 {[%clk 0:02:17]} 26. Nh5 {[%clk 0:01:23]}  Rxc3 {[%clk 0:02:07]} 27. Nxf6+ {[%clk 0:01:10]}  gxf6 {[%clk 0:02:08]} 28. Qh7+ {[%clk 0:01:09]}  Kf8 {[%clk 0:02:06]} 29. Rxe6 {[%clk 0:01:09]}  fxe6 {[%clk 0:02:05]} 30. Bg6 {[%clk 0:01:09]}  Qc1+ {[%clk 0:02:00]} 0-1


[Site "https://www.chess.com"]

[Event "Titled Tuesday Blitz April 05 Early 2022"]
[White "Hua, Lefong"]
[Black "Fikiet, Alex"]
[WhiteFideId "2602253"]
[BlackFideId "2052717"]
[WhiteElo "2597"]
[BlackElo "2436"]
[Result "0-1"]
[Round "05"]
[TimeControl "180+1"]
[Date "2022.04.05"]
[WhiteClock "0:00:14"]
[BlackClock "0:00:14"]

1. d4 {[%clk 0:03:00]}  d5 {[%clk 0:02:59]} 2. c4 {[%clk 0:03:01]}  dxc4 {[%clk 0:02:58]} 3. Nf3 {[%clk 0:03:01]}  a6 {[%clk 0:02:55]} 4. e3 {[%clk 0:02:59]}  Bg4 {[%clk 0:02:55]} 5. Bxc4 {[%clk 0:02:59]}  e6 {[%clk 0:02:55]} 6. h3 {[%clk 0:02:57]}  Bh5 {[%clk 0:02:52]} 7. O-O {[%clk 0:02:56]}  Nc6 {[%clk 0:02:51]} 8. Be2 {[%clk 0:02:55]}  Nf6 {[%clk 0:02:50]} 9. Nc3 {[%clk 0:02:55]}  Bd6 {[%clk 0:02:47]} 10. b3 {[%clk 0:02:55]}  O-O {[%clk 0:02:47]} 11. Bb2 {[%clk 0:02:55]}  Qe7 {[%clk 0:02:38]} 12. Rc1 {[%clk 0:02:41]}  Rad8 {[%clk 0:02:37]} 13. Nd2 {[%clk 0:02:33]}  Bxe2 {[%clk 0:02:25]} 14. Qxe2 {[%clk 0:02:34]}  e5 {[%clk 0:02:22]} 15. d5 {[%clk 0:02:32]}  Nb8 {[%clk 0:02:16]} 16. e4 {[%clk 0:02:30]}  Nbd7 {[%clk 0:02:10]} 17. Nc4 {[%clk 0:02:26]}  Bc5 {[%clk 0:01:56]} 18. Rfd1 {[%clk 0:02:18]}  Ne8 {[%clk 0:01:52]} 19. a3 {[%clk 0:02:00]}  Nd6 {[%clk 0:01:49]} 20. b4 {[%clk 0:01:48]}  Ba7 {[%clk 0:01:40]} 21. Na5 {[%clk 0:01:39]}  Qh4 {[%clk 0:01:29]} 22. Rf1 {[%clk 0:00:51]}  f5 {[%clk 0:01:27]} 23. exf5 {[%clk 0:00:47]}  Rxf5 {[%clk 0:01:26]} 24. Rc2 {[%clk 0:00:41]}  Rdf8 {[%clk 0:01:25]} 25. Nd1 {[%clk 0:00:41]}  Ne4 {[%clk 0:00:37]} 26. Rc4 {[%clk 0:00:27]}  Rf4 {[%clk 0:00:28]} 27. Bc1 {[%clk 0:00:19]}  Nxf2 {[%clk 0:00:21]} 28. Bxf4 {[%clk 0:00:17]}  Nxh3+ {[%clk 0:00:18]} 29. Kh1 {[%clk 0:00:16]}  Nf2+ {[%clk 0:00:16]} 30. Kg1 {[%clk 0:00:15]}  Ng4+ {[%clk 0:00:16]} 31. Be3 {[%clk 0:00:14]}  Qh2# {[%clk 0:00:14]} 0-1


[Site "https://www.chess.com"]

[Event "Titled Tuesday Blitz April 05 Early 2022"]
[White "Jain, Naveen"]
[Black "Manon-og, Ramon Jr."]
[WhiteFideId "5003970"]
[BlackFideId "5200776"]
[WhiteElo "2036"]
[BlackElo "2245"]
[Result "0-1"]
[Round "05"]
[TimeControl "180+1"]
[Date "2022.04.05"]
[WhiteClock "0:01:27"]
[BlackClock "0:00:42"]

1. e4 {[%clk 0:03:00]}  c5 {[%clk 0:02:59]} 2. Nf3 {[%clk 0:02:59]}  d6 {[%clk 0:02:59]} 3. Bc4 {[%clk 0:02:58]}  Nc6 {[%clk 0:02:59]} 4. a4 {[%clk 0:02:57]}  e6 {[%clk 0:02:59]} 5. Nc3 {[%clk 0:02:57]}  Be7 {[%clk 0:02:59]} 6. d3 {[%clk 0:02:57]}  Nf6 {[%clk 0:02:59]} 7. Be3 {[%clk 0:02:57]}  d5 {[%clk 0:02:57]} 8. exd5 {[%clk 0:02:56]}  exd5 {[%clk 0:02:58]} 9. Ba2 {[%clk 0:02:53]}  d4 {[%clk 0:02:57]} 10. Ne2 {[%clk 0:02:53]}  dxe3 {[%clk 0:02:57]} 11. fxe3 {[%clk 0:02:53]}  O-O {[%clk 0:02:56]} 12. O-O {[%clk 0:02:53]}  Ng4 {[%clk 0:02:55]} 13. Qd2 {[%clk 0:02:46]}  Bg5 {[%clk 0:02:54]} 14. Nxg5 {[%clk 0:02:45]}  Qxg5 {[%clk 0:02:53]} 15. Rf3 {[%clk 0:02:46]}  Be6 {[%clk 0:02:38]} 16. Rg3 {[%clk 0:02:43]}  Qe5 {[%clk 0:02:25]} 17. Bxe6 {[%clk 0:02:39]}  Qxe6 {[%clk 0:02:26]} 18. Nf4 {[%clk 0:02:39]}  Qd7 {[%clk 0:02:20]} 19. h3 {[%clk 0:02:38]}  Nf6 {[%clk 0:02:19]} 20. Rf1 {[%clk 0:02:33]}  Rae8 {[%clk 0:02:18]} 21. Qc3 {[%clk 0:02:30]}  Re5 {[%clk 0:01:57]} 22. Ne2 {[%clk 0:02:22]}  Nh5 {[%clk 0:01:42]} 23. Rg4 {[%clk 0:02:17]}  Rxe3 {[%clk 0:01:33]} 24. Nf4 {[%clk 0:02:10]}  Nf6 {[%clk 0:01:18]} 25. Qxf6 {[%clk 0:02:08]}  Qxg4 {[%clk 0:01:18]} 26. hxg4 {[%clk 0:02:06]}  gxf6 {[%clk 0:01:17]} 27. Nd5 {[%clk 0:02:06]}  Re6 {[%clk 0:01:15]} 28. Nxf6+ {[%clk 0:02:04]}  Kh8 {[%clk 0:01:12]} 29. Nh5 {[%clk 0:02:04]}  Nd4 {[%clk 0:01:07]} 30. Kh2 {[%clk 0:02:00]}  f5 {[%clk 0:01:02]} 31. Rh1 {[%clk 0:01:55]}  fxg4 {[%clk 0:01:00]} 32. Kg3 {[%clk 0:01:55]}  Ne2+ {[%clk 0:00:55]} 33. Kxg4 {[%clk 0:01:54]}  Rg6+ {[%clk 0:00:54]} 34. Kh4 {[%clk 0:01:51]}  Rxg2 {[%clk 0:00:51]} 35. Kh3 {[%clk 0:01:41]}  Rfg8 {[%clk 0:00:47]} 36. Rf1 {[%clk 0:01:38]}  Ng1+ {[%clk 0:00:42]} 37. Rxg1 {[%clk 0:01:27]}  Rxg1 {[%clk 0:00:43]} 38. Nf4 {[%clk 0:01:27]}  Rh1# {[%clk 0:00:42]} 0-1


[Site "https://www.chess.com"]

[Event "Titled Tuesday Blitz April 05 Early 2022"]
[White "Jaskolka, Tomasz"]
[Black "Yang, Kaiqi"]
[WhiteFideId "1170791"]
[BlackFideId "8604398"]
[WhiteElo "2073"]
[BlackElo "2373"]
[Result "0-1"]
[Round "05"]
[TimeControl "180+1"]
[Date "2022.04.05"]
[WhiteClock "0:00:34"]
[BlackClock "0:00:24"]

1. d4 {[%clk 0:03:00]}  e6 {[%clk 0:02:59]} 2. Bf4 {[%clk 0:03:00]}  f5 {[%clk 0:02:57]} 3. e3 {[%clk 0:02:59]}  Nf6 {[%clk 0:02:58]} 4. c3 {[%clk 0:02:59]}  Be7 {[%clk 0:02:58]} 5. Nd2 {[%clk 0:02:59]}  O-O {[%clk 0:02:58]} 6. Ngf3 {[%clk 0:02:58]}  d6 {[%clk 0:02:59]} 7. Bd3 {[%clk 0:02:58]}  Nc6 {[%clk 0:02:58]} 8. Bc2 {[%clk 0:02:53]}  Nh5 {[%clk 0:02:54]} 9. Bg3 {[%clk 0:02:48]}  Qe8 {[%clk 0:02:53]} 10. Qe2 {[%clk 0:02:39]}  g5 {[%clk 0:02:39]} 11. O-O-O {[%clk 0:02:06]}  a5 {[%clk 0:02:37]} 12. h4 {[%clk 0:01:37]}  g4 {[%clk 0:02:25]} 13. Ne1 {[%clk 0:01:35]}  Bd7 {[%clk 0:02:02]} 14. e4 {[%clk 0:01:35]}  Qf7 {[%clk 0:01:42]} 15. exf5 {[%clk 0:01:34]}  exf5 {[%clk 0:01:22]} 16. Bb3 {[%clk 0:01:13]}  d5 {[%clk 0:01:21]} 17. a3 {[%clk 0:01:05]}  a4 {[%clk 0:01:08]} 18. Ba2 {[%clk 0:01:05]}  f4 {[%clk 0:01:06]} 19. Bh2 {[%clk 0:01:05]}  Kh8 {[%clk 0:00:55]} 20. Nd3 {[%clk 0:01:05]}  Bd6 {[%clk 0:00:53]} 21. Ne5 {[%clk 0:00:52]}  Bxe5 {[%clk 0:00:51]} 22. dxe5 {[%clk 0:00:52]}  Rae8 {[%clk 0:00:51]} 23. Rde1 {[%clk 0:00:52]}  Rxe5 {[%clk 0:00:50]} 24. Qd3 {[%clk 0:00:52]}  Bf5 {[%clk 0:00:47]} 25. Qb5 {[%clk 0:00:52]}  Bg6 {[%clk 0:00:39]} 26. Qxb7 {[%clk 0:00:46]}  Rfe8 {[%clk 0:00:34]} 27. Rxe5 {[%clk 0:00:45]}  Nxe5 {[%clk 0:00:35]} 28. Bb1 {[%clk 0:00:38]}  Nd3+ {[%clk 0:00:24]} 29. Bxd3 {[%clk 0:00:38]}  Bxd3 {[%clk 0:00:25]} 30. f3 {[%clk 0:00:34]}  g3 {[%clk 0:00:25]} 31. Bg1 {[%clk 0:00:34]}  Re1# {[%clk 0:00:24]} 0-1


[Site "https://www.chess.com"]

[Event "Titled Tuesday Blitz April 05 Early 2022"]
[White "Kaminski, Victor"]
[Black "Rozhkov, Viacheslav"]
[WhiteFideId "1131630"]
[BlackFideId "4181484"]
[WhiteElo "2181"]
[BlackElo "2324"]
[Result "1-0"]
[Round "05"]
[TimeControl "180+1"]
[Date "2022.04.05"]
[WhiteClock "0:00:08"]
[BlackClock "0:00:01"]

1. e4 {[%clk 0:02:52]}  c5 {[%clk 0:02:59]} 2. Nf3 {[%clk 0:02:51]}  Nc6 {[%clk 0:02:59]} 3. Bb5 {[%clk 0:02:50]}  e6 {[%clk 0:02:59]} 4. O-O {[%clk 0:02:49]}  Nge7 {[%clk 0:02:58]} 5. d4 {[%clk 0:02:48]}  cxd4 {[%clk 0:02:57]} 6. Nxd4 {[%clk 0:02:49]}  Nxd4 {[%clk 0:02:57]} 7. Qxd4 {[%clk 0:02:50]}  Nc6 {[%clk 0:02:58]} 8. Qe3 {[%clk 0:02:51]}  Be7 {[%clk 0:02:53]} 9. Rd1 {[%clk 0:02:46]}  O-O {[%clk 0:02:50]} 10. c4 {[%clk 0:02:44]}  Qc7 {[%clk 0:02:46]} 11. Nc3 {[%clk 0:02:41]}  Ne5 {[%clk 0:02:32]} 12. Qg3 {[%clk 0:02:37]}  d6 {[%clk 0:02:01]} 13. Bf4 {[%clk 0:02:14]}  Bf6 {[%clk 0:02:01]} 14. Rac1 {[%clk 0:02:05]}  a6 {[%clk 0:01:41]} 15. Ba4 {[%clk 0:02:01]}  b6 {[%clk 0:01:32]} 16. h4 {[%clk 0:01:55]}  Kh8 {[%clk 0:01:20]} 17. h5 {[%clk 0:01:32]}  h6 {[%clk 0:01:16]} 18. Bc2 {[%clk 0:01:29]}  Bb7 {[%clk 0:01:07]} 19. b3 {[%clk 0:01:26]}  Rad8 {[%clk 0:01:06]} 20. Ne2 {[%clk 0:01:23]}  Qe7 {[%clk 0:00:45]} 21. Be3 {[%clk 0:01:18]}  b5 {[%clk 0:00:30]} 22. cxb5 {[%clk 0:01:15]}  axb5 {[%clk 0:00:31]} 23. Bb1 {[%clk 0:01:03]}  Rc8 {[%clk 0:00:26]} 24. Nc3 {[%clk 0:00:53]}  b4 {[%clk 0:00:24]} 25. Nb5 {[%clk 0:00:53]}  Rfd8 {[%clk 0:00:19]} 26. Rxc8 {[%clk 0:00:50]}  Bxc8 {[%clk 0:00:20]} 27. Bd2 {[%clk 0:00:50]}  d5 {[%clk 0:00:19]} 28. Bf4 {[%clk 0:00:48]}  Nc6 {[%clk 0:00:14]} 29. Bd6 {[%clk 0:00:42]}  Qe8 {[%clk 0:00:11]} 30. e5 {[%clk 0:00:41]}  Be7 {[%clk 0:00:08]} 31. Qd3 {[%clk 0:00:41]}  Qg8 {[%clk 0:00:07]} 32. f4 {[%clk 0:00:37]}  Ba6 {[%clk 0:00:07]} 33. Bxe7 {[%clk 0:00:24]}  Nxe7 {[%clk 0:00:08]} 34. Qe2 {[%clk 0:00:23]}  Rb8 {[%clk 0:00:07]} 35. Bd3 {[%clk 0:00:23]}  Bxb5 {[%clk 0:00:05]} 36. Bxb5 {[%clk 0:00:24]}  Nf5 {[%clk 0:00:05]} 37. Bd3 {[%clk 0:00:22]}  Ne7 {[%clk 0:00:05]} 38. Bb1 {[%clk 0:00:20]}  Rc8 {[%clk 0:00:04]} 39. Qd2 {[%clk 0:00:18]}  g6 {[%clk 0:00:02]} 40. Qxb4 {[%clk 0:00:13]}  gxh5 {[%clk 0:00:01]} 41. Qxe7 {[%clk 0:00:12]}  Qg7 {[%clk 0:00:01]} 42. Qh4 {[%clk 0:00:09]}  Rg8 {[%clk 0:00:02]} 43. Qf6 {[%clk 0:00:09]}  Qxf6 {[%clk 0:00:01]} 44. exf6 {[%clk 0:00:09]}  Rf8 {[%clk 0:00:01]} 45. a4 {[%clk 0:00:09]}  Rb8 {[%clk 0:00:01]} 46. Bc2 {[%clk 0:00:09]}  Rb4 {[%clk 0:00:01]} 47. g3 {[%clk 0:00:08]}  Kg8 {[%clk 0:00:02]} 48. Kg2 {[%clk 0:00:07]}  h4 {[%clk 0:00:03]} 49. Rh1 {[%clk 0:00:07]}  hxg3 {[%clk 0:00:03]} 50. Rxh6 {[%clk 0:00:07]}  Rd4 {[%clk 0:00:01]} 51. Bh7+ {[%clk 0:00:08]} 1-0


[Site "https://www.chess.com"]

[Event "Titled Tuesday Blitz April 05 Early 2022"]
[White "Khamdamova, Afruza"]
[Black "Zlatin, Alexander"]
[WhiteFideId "14210444"]
[BlackFideId "2810549"]
[WhiteElo "1660"]
[BlackElo "2228"]
[Result "0-1"]
[Round "05"]
[TimeControl "180+1"]
[Date "2022.04.05"]
[WhiteClock "0:00:02"]
[BlackClock "0:00:56"]

1. e4 {[%clk 0:03:00]}  e5 {[%clk 0:02:50]} 2. Nf3 {[%clk 0:03:00]}  Nc6 {[%clk 0:02:49]} 3. Bb5 {[%clk 0:03:00]}  a6 {[%clk 0:02:50]} 4. Ba4 {[%clk 0:02:59]}  Nf6 {[%clk 0:02:50]} 5. O-O {[%clk 0:02:59]}  Nxe4 {[%clk 0:02:49]} 6. d4 {[%clk 0:02:58]}  b5 {[%clk 0:02:49]} 7. Bb3 {[%clk 0:02:58]}  d5 {[%clk 0:02:50]} 8. dxe5 {[%clk 0:02:57]}  Be6 {[%clk 0:02:50]} 9. c3 {[%clk 0:02:54]}  Bc5 {[%clk 0:02:50]} 10. Nbd2 {[%clk 0:02:24]}  O-O {[%clk 0:02:44]} 11. Bc2 {[%clk 0:02:16]}  Nxf2 {[%clk 0:02:43]} 12. Rxf2 {[%clk 0:02:14]}  f6 {[%clk 0:02:44]} 13. exf6 {[%clk 0:02:01]}  Qxf6 {[%clk 0:02:45]} 14. Nb3 {[%clk 0:01:58]}  Bxf2+ {[%clk 0:02:43]} 15. Kxf2 {[%clk 0:01:58]}  Rae8 {[%clk 0:02:42]} 16. Nd4 {[%clk 0:01:34]}  Ne5 {[%clk 0:02:28]} 17. Kg1 {[%clk 0:01:27]}  Bg4 {[%clk 0:02:26]} 18. Bd2 {[%clk 0:00:54]}  c5 {[%clk 0:02:23]} 19. h3 {[%clk 0:00:47]}  Bh5 {[%clk 0:02:08]} 20. Bg5 {[%clk 0:00:19]}  Nxf3+ {[%clk 0:01:58]} 21. Nxf3 {[%clk 0:00:18]}  Bxf3 {[%clk 0:01:55]} 22. Bxf6 {[%clk 0:00:14]}  Bxd1 {[%clk 0:01:53]} 23. Rxd1 {[%clk 0:00:11]}  Rxf6 {[%clk 0:01:53]} 24. Rxd5 {[%clk 0:00:11]}  c4 {[%clk 0:01:52]} 25. b3 {[%clk 0:00:09]}  g6 {[%clk 0:01:47]} 26. bxc4 {[%clk 0:00:08]}  bxc4 {[%clk 0:01:48]} 27. Ba4 {[%clk 0:00:07]}  Re1+ {[%clk 0:01:42]} 28. Kh2 {[%clk 0:00:07]}  Re2 {[%clk 0:01:43]} 29. Rd4 {[%clk 0:00:06]}  Rxa2 {[%clk 0:01:31]} 30. Rxc4 {[%clk 0:00:06]}  Kg7 {[%clk 0:01:19]} 31. Bc6 {[%clk 0:00:05]}  Rc2 {[%clk 0:01:15]} 32. Bd5 {[%clk 0:00:04]}  Rd6 {[%clk 0:01:09]} 33. Rc7+ {[%clk 0:00:04]}  Kf6 {[%clk 0:01:03]} 34. Be4 {[%clk 0:00:03]}  Rc1 {[%clk 0:01:00]} 35. c4 {[%clk 0:00:02]}  Rd4 {[%clk 0:00:56]} 0-1


[Site "https://www.chess.com"]